bitfinex/quotes_BTCUSD_20250108
["timestamp","ask_amount","ask_price","bid_price","bid_amount"]
[1736343020397,0.10429976,95689.0,95688.0,0.16739952]
[1736343021014,0.10429976,95689.0,95688.0,0.01739952]
[1736343021202,0.10429976,95689.0,95688.0,0.01339952]
[1736343021403,0.10429976,95689.0,95677.0,0.418071]
[1736343021740,0.10429976,95686.0,95678.0,0.00842095]
[1736343022168,0.10429976,95683.0,95669.0,0.209052]
[1736343022352,0.10429976,95683.0,95631.0,0.1]
[1736343022353,0.15009976,95672.0,95629.0,0.076]
[1736343022566,0.10429976,95665.0,95645.0,0.209104]
[1736343022702,0.10429976,95664.0,95649.0,0.209096]
[1736343022905,0.209067,95663.0,95649.0,0.209096]
[1736343023113,0.10429976,95662.0,95650.0,0.209095]
[1736343023308,0.10429976,95662.0,95650.0,0.18901255]
[1736343023537,0.10429976,95662.0,95652.0,0.20909]
[1736343023743,0.10429976,95662.0,95656.0,0.20908]
[1736343024486,0.1044521,95662.0,95656.0,0.20908]
[1736343024689,0.05756,95661.0,95656.0,0.20908]
[1736343024899,0.10429976,95660.0,95656.0,0.418162]
[1736343025094,0.10429976,95660.0,95656.0,0.419162]
[1736343025274,0.10429976,95660.0,95656.0,0.21008]
[1736343025676,0.10429976,95660.0,95657.0,0.20908]
[1736343025878,0.00015234,95662.0,95660.0,0.15]
[1736343025879,0.05771234,95662.0,95660.0,0.15]
[1736343026135,0.10529976,95661.0,95660.0,0.15]
[1736343026335,0.10429976,95661.0,95660.0,0.15]
[1736343027137,0.10429976,95661.0,95659.0,0.209075]
[1736343027533,0.10429976,95661.0,95660.0,0.001]
[1736343028098,0.10429976,95661.0,95659.0,0.209075]
[1736343028509,0.10429976,95661.0,95659.0,0.211075]
[1736343029469,0.00015234,95662.0,95661.0,0.359071]
[1736343029698,0.0483,95691.0,95662.0,0.15]
[1736343029896,0.05756,95696.0,95690.0,0.359008]
[1736343030116,0.10429976,95695.0,95694.0,0.358999]
[1736343030333,0.10429976,95695.0,95693.0,0.15]
[1736343030334,0.10429976,95695.0,95691.0,0.00839309]
[1736343030533,0.10429976,95695.0,95687.0,0.209012]
[1736343030740,0.10429976,95695.0,95692.0,0.00839095]
[1736343030942,0.10429976,95695.0,95688.0,0.15]
[1736343031146,0.10429976,95695.0,95693.0,0.00838881]
[1736343031417,0.10429976,95695.0,95688.0,0.15]
[1736343031623,0.10429976,95695.0,95694.0,0.21738566]
[1736343031792,0.10429976,95695.0,95694.0,0.208999]
[1736343032024,0.10429976,95695.0,95694.0,0.21738566]
[1736343032200,0.10429976,95695.0,95694.0,0.00838666]
[1736343032578,0.208999,95694.0,95660.0,0.18901255]
[1736343032778,0.0781,95676.0,95660.0,0.01055955]
[1736343032977,0.209051,95671.0,95661.0,0.01273795]
[1736343033184,0.10429976,95671.0,95661.0,0.01273795]
[1736343033388,0.209051,95670.0,95654.0,0.209085]
[1736343033612,0.209056,95668.0,95654.0,0.209085]
[1736343033809,0.15259976,95667.0,95656.0,0.209082]
[1736343034016,0.15259976,95667.0,95659.0,0.209075]
[1736343034389,0.15259976,95667.0,95661.0,0.209071]
[1736343034587,0.15259976,95667.0,95666.0,0.20906]
[1736343034794,0.21015976,95667.0,95666.0,0.20906]
[1736343034999,0.21015976,95667.0,95666.0,0.22178009]
[1736343035646,0.21115976,95667.0,95666.0,0.01272009]
[1736343035857,0.21115976,95667.0,95660.0,0.209073]
[1736343035858,0.001,95667.0,95663.0,0.15]
[1736343036110,0.001,95667.0,95666.0,0.01272009]
[1736343036309,0.001,95667.0,95666.0,0.35906]
[1736343036473,0.10529976,95667.0,95666.0,0.37178009]
[1736343036675,0.001,95667.0,95666.0,0.37178009]
[1736343036885,0.00087419,95667.0,95666.0,0.37178009]
[1736343037097,0.05756,95677.0,95676.0,0.15]
[1736343037306,0.10429976,95677.0,95676.0,0.15]
[1736343037522,0.10429976,95677.0,95676.0,0.15951327]
[1736343037724,0.10336,95685.0,95684.0,0.15]
[1736343037943,0.20765976,95685.0,95684.0,0.15]
[1736343038291,0.20765976,95685.0,95677.0,0.209036]
[1736343038492,0.10429976,95684.0,95676.0,0.002]
[1736343038697,0.10429976,95684.0,95672.0,0.209047]
[1736343038698,0.10429976,95684.0,95675.0,0.15]
[1736343038901,0.10429976,95681.0,95651.0,0.209093]
[1736343039102,0.10429976,95679.0,95664.0,0.209063]
[1736343039349,0.10429976,95679.0,95665.0,0.15]
[1736343039651,0.209043,95674.0,95665.0,0.15]
[1736343039864,0.10429976,95673.0,95661.0,0.20907]
[1736343040073,0.10429976,95673.0,95667.0,0.209057]
[1736343040494,0.10429976,95673.0,95671.0,0.209048]
[1736343041937,0.10429976,95673.0,95672.0,0.15]
[1736343042458,0.209003,95693.0,95672.0,0.15]
[1736343042459,0.05756,95691.0,95688.0,0.209012]
[1736343042731,0.10429976,95690.0,95688.0,0.209012]
[1736343042979,0.10429976,95690.0,95689.0,0.15]
[1736343043703,0.10429976,95690.0,95678.0,0.209033]
[1736343044117,0.20901,95689.0,95678.0,0.209033]
[1736343044324,0.10429976,95685.0,95672.0,0.003]
[1736343044524,0.05756,95695.0,95672.0,0.003]
[1736343044525,0.10429976,95678.0,95672.0,0.003]
[1736343044776,0.31333576,95678.0,95672.0,0.003]
[1736343044987,0.31333576,95678.0,95665.0,0.209061]
[1736343045153,0.209047,95673.0,95659.0,0.209075]
[1736343045372,0.209047,95673.0,95666.0,0.01272009]
[1736343045373,0.209054,95669.0,95666.0,0.01272009]
[1736343045545,0.1267,95671.0,95639.0,0.01049235]
[1736343045546,0.10429976,95667.0,95639.0,0.01049235]
[1736343045753,0.209087,95654.0,95640.0,0.209117]
[1736343045951,0.10429976,95653.0,95636.0,0.209126]
[1736343046303,0.209113,95642.0,95628.0,0.0006901]
[1736343046514,0.209139,95630.0,95628.0,0.0006901]
[1736343046633,0.10429976,95629.0,95628.0,0.0006901]
[1736343046857,0.10429976,95629.0,95628.0,0.00119819]
[1736343048322,0.27529976,95629.0,95628.0,0.00119819]
[1736343048570,0.27529976,95629.0,95605.0,0.0001704]
[1736343048571,0.1,95624.0,95605.0,0.0001704]
[1736343048902,0.30263224,95624.0,95623.0,0.00032294]
[1736343049075,0.1,95619.0,95605.0,0.0001704]
[1736343049327,0.1,95619.0,95605.0,0.00032263]
[1736343049328,0.31349076,95606.0,95605.0,0.00032263]
[1736343049585,0.36269076,95606.0,95605.0,0.00032263]
[1736343049839,0.56629076,95606.0,95605.0,0.00032263]
[1736343050578,0.332202,95601.0,95600.0,1.99984751]
[1736343050823,0.68307084,95601.0,95600.0,1.87174751]
[1736343051812,0.58460176,95601.0,95600.0,1.87174751]
[1736343052292,0.73460176,95601.0,95600.0,1.66401118]
[1736343052499,0.73460176,95601.0,95600.0,1.53591118]
[1736343053204,0.68650176,95601.0,95600.0,1.14474122]
[1736343053436,0.69550176,95601.0,95600.0,1.08482022]
[1736343053712,0.80680152,95601.0,95600.0,0.83843922]
[1736343053967,0.80680152,95601.0,95600.0,0.77851822]
[1736343054166,0.80680152,95601.0,95600.0,0.75759722]
[1736343054359,0.80680152,95601.0,95600.0,0.73667622]
[1736343054600,0.79980152,95601.0,95600.0,0.73567622]
[1736343054849,0.68650176,95601.0,95600.0,0.73567622]
[1736343055063,0.76018176,95601.0,95600.0,0.73667622]
[1736343055291,0.76018176,95601.0,95600.0,0.55588155]
[1736343055462,0.75118176,95601.0,95600.0,0.5330646]
[1736343055704,0.86448152,95601.0,95600.0,0.5330646]
[1736343056119,0.86448152,95601.0,95600.0,0.4912226]
[1736343057322,0.86452152,95601.0,95600.0,0.4912226]
[1736343059611,0.86452152,95601.0,95600.0,0.39527017]
[1736343059878,0.35,95580.0,95579.0,2e-07]
[1736343060125,0.35,95580.0,95529.0,0.0452]
[1736343060126,0.582266,95572.0,95529.0,0.0452]
[1736343060400,0.2,95567.0,95529.0,0.0452]
[1736343060627,0.41201976,95567.0,95529.0,0.0452]
[1736343060874,0.51201976,95567.0,95529.0,0.0452]
[1736343061129,0.57800631,95567.0,95529.0,0.0452]
[1736343061376,0.559305,95554.0,95529.0,0.0452]
[1736343061697,0.35,95550.0,95524.0,0.082]
[1736343061875,0.47729976,95550.0,95524.0,0.082]
[1736343062122,0.35,95541.0,95514.0,0.046]
[1736343062358,0.123,95528.0,95510.0,0.0788]
[1736343062606,0.47729976,95528.0,95498.0,0.1264]
[1736343062821,0.47729976,95528.0,95498.0,0.04758602]
[1736343062822,0.209426,95499.0,95498.0,0.04758602]
[1736343063025,0.37144576,95499.0,95498.0,0.0480947]
[1736343063236,0.31372576,95499.0,95498.0,0.05987499]
[1736343063447,0.37144576,95499.0,95498.0,0.0480947]
[1736343064526,0.10529976,95499.0,95498.0,0.0480947]
[1736343064747,0.10529976,95499.0,95498.0,0.4894227]
[1736343064951,0.10529976,95499.0,95498.0,0.2799947]
[1736343065166,0.10429976,95499.0,95498.0,0.29177499]
[1736343065586,0.11029976,95499.0,95498.0,0.29177499]
[1736343065813,0.10429976,95499.0,95498.0,0.50120299]
[1736343066021,0.10529976,95499.0,95498.0,0.50120299]
[1736343066999,0.10529976,95499.0,95498.0,0.57226709]
[1736343067199,0.10429976,95499.0,95498.0,0.57226709]
[1736343067562,0.05776,95500.0,95498.0,0.57226709]
[1736343067563,0.05776,95510.0,95507.0,0.209408]
[1736343067762,0.05776,95510.0,95498.0,0.14277499]
[1736343067763,0.05776,95539.0,95515.0,0.15]
[1736343068000,0.10429976,95538.0,95516.0,0.08164678]
[1736343068206,0.10429976,95538.0,95536.0,0.209344]
[1736343068409,0.10429976,95538.0,95537.0,0.1282]
[1736343068602,0.16205976,95538.0,95537.0,0.14044854]
[1736343069014,0.16205976,95538.0,95537.0,0.01224854]
[1736343069223,0.16605976,95538.0,95537.0,0.01224854]
[1736343069380,0.209373,95523.0,95522.0,0.0792]
[1736343069582,0.31367276,95523.0,95521.0,0.0487]
[1736343069804,0.209373,95523.0,95522.0,0.01281097]
[1736343069955,0.10429976,95523.0,95522.0,0.00050868]
[1736343070368,0.16205976,95523.0,95522.0,0.20988368]
[1736343070581,0.16205976,95523.0,95522.0,0.22218597]
[1736343070784,0.10429976,95523.0,95522.0,0.22218597]
[1736343070984,0.16205976,95523.0,95522.0,0.22218597]
[1736343071419,0.10429976,95523.0,95522.0,0.22218597]
[1736343071699,0.16205976,95523.0,95522.0,0.28721327]
[1736343071951,0.16605976,95523.0,95522.0,0.22418597]
[1736343072157,0.16605976,95523.0,95522.0,0.21969282]
[1736343072367,0.16205976,95523.0,95522.0,0.21769282]
[1736343072780,0.16205976,95523.0,95522.0,0.00831782]
[1736343073184,0.16305976,95523.0,95522.0,0.00831782]
[1736343073605,0.16205976,95523.0,95522.0,0.00831782]
[1736343074091,0.16205976,95523.0,95522.0,0.01031782]
[1736343074302,0.16205976,95523.0,95522.0,0.00250868]
[1736343074558,0.16205976,95523.0,95522.0,0.00050868]
[1736343074739,0.1101,95588.0,95522.0,0.00050868]
[1736343074740,0.05776,95549.0,95528.0,0.15]
[1736343074946,0.05776,95549.0,95527.0,0.127]
[1736343074947,0.05776,95555.0,95549.0,0.0777]
[1736343075077,0.209276,95568.0,95549.0,0.0777]
[1736343075078,0.16205976,95554.0,95549.0,0.0777]
[1736343075272,0.05776,95553.0,95550.0,0.00774895]
[1736343075472,0.10429976,95552.0,95549.0,0.0777]
[1736343075678,0.10429976,95552.0,95550.0,0.00774895]
[1736343075883,0.05776,95551.0,95549.0,0.0777]
[1736343076090,0.10429976,95550.0,95549.0,0.0777]
[1736343076901,0.14153604,95550.0,95549.0,0.0777]
[1736343077132,0.16205976,95550.0,95549.0,0.0777]
[1736343077360,0.16305976,95550.0,95549.0,0.0777]
[1736343077778,0.16305976,95550.0,95540.0,0.209336]
[1736343078005,0.10429976,95548.0,95540.0,0.209336]
[1736343078203,0.10429976,95548.0,95537.0,0.0761]
[1736343078408,0.10429976,95548.0,95538.0,0.20934]
[1736343079093,0.10429976,95548.0,95538.0,0.41868]
[1736343079345,0.10429976,95548.0,95538.0,0.20934]
[1736343079573,0.10429976,95543.0,95537.0,0.0761]
[1736343080220,0.10429976,95543.0,95538.0,0.21034]
[1736343080430,0.10429976,95543.0,95538.0,0.20934]
[1736343080646,0.10429976,95543.0,95537.0,0.0761]
[1736343080850,0.10529976,95543.0,95538.0,0.002]
[1736343081054,0.10429976,95543.0,95538.0,0.002]
[1736343081460,0.10429976,95543.0,95538.0,0.20934]
[1736343081635,0.10429976,95543.0,95538.0,0.21034]
[1736343082211,0.05776,95542.0,95538.0,0.2749184]
[1736343082412,0.10429976,95541.0,95538.0,0.2749184]
[1736343082610,0.10429976,95541.0,95538.0,0.001]
[1736343083759,0.10529976,95541.0,95538.0,0.001]
[1736343083959,0.10529976,95541.0,95539.0,0.209338]
[1736343084172,0.10529976,95541.0,95540.0,0.15]
[1736343084383,0.10529976,95541.0,95540.0,0.1994]
[1736343084590,0.10529976,95541.0,95540.0,0.2316015]
[1736343085217,0.10529976,95541.0,95540.0,0.0494]
[1736343085643,0.10429976,95541.0,95540.0,0.0494]
[1736343085854,0.10529976,95541.0,95540.0,0.28726099]
[1736343086062,0.10529976,95541.0,95540.0,0.29126099]
[1736343086270,0.209271,95570.0,95561.0,0.081]
[1736343086478,0.10429976,95564.0,95561.0,0.081]
[1736343087108,0.10429976,95564.0,95562.0,0.00772316]
[1736343087383,0.10429976,95564.0,95561.0,0.081]
[1736343087589,0.10429976,95562.0,95550.0,0.0753]
[1736343087796,0.10429976,95555.0,95550.0,0.0753]
[1736343088009,0.2093,95557.0,95540.0,0.0494]
[1736343088010,0.10429976,95551.0,95540.0,0.0494]
[1736343088211,0.00015218,95564.0,95540.0,0.0494]
[1736343088212,0.10429976,95546.0,95540.0,0.0494]
[1736343088428,0.0586,95545.0,95540.0,0.0494]
[1736343088639,0.10429976,95544.0,95540.0,0.0494]
[1736343089274,0.10429976,95544.0,95540.0,0.0514]
[1736343089944,0.10429976,95544.0,95540.0,0.0524]
[1736343090154,0.10429976,95544.0,95541.0,0.209334]
[1736343090332,0.10429976,95544.0,95541.0,0.21710229]
[1736343090540,0.10429976,95544.0,95543.0,0.209329]
[1736343090759,0.10429976,95544.0,95540.0,0.0504]
[1736343090760,0.10429976,95544.0,95542.0,0.00776614]
[1736343090962,0.10429976,95544.0,95540.0,0.0534]
[1736343091171,0.10429976,95544.0,95543.0,0.00776399]
[1736343091371,0.10429976,95544.0,95541.0,0.209334]
[1736343091594,0.10429976,95544.0,95543.0,0.00776399]
[1736343091794,0.209329,95543.0,95542.0,0.00776614]
[1736343092015,0.209329,95543.0,95540.0,0.0524]
[1736343092016,0.31362876,95543.0,95540.0,0.0494]
[1736343092221,0.10429976,95541.0,95540.0,0.0494]
[1736343093941,0.10429976,95541.0,95539.0,0.0776]
[1736343093942,0.209336,95540.0,95528.0,0.0769]
[1736343094152,0.10429976,95530.0,95528.0,0.0769]
[1736343094274,0.10429976,95529.0,95523.0,0.41116488]
[1736343094494,0.20935,95534.0,95523.0,0.41116488]
[1736343094495,0.10429976,95525.0,95523.0,0.41116488]
[1736343094718,0.0586,95524.0,95518.0,0.0802]
[1736343094922,0.10429976,95523.0,95518.0,0.0802]
[1736343095569,0.10429976,95523.0,95519.0,0.209382]
[1736343095787,0.10429976,95523.0,95519.0,0.418764]
[1736343096007,0.10429976,95523.0,95518.0,0.08070868]
[1736343096206,0.10429976,95523.0,95519.0,0.03228027]
[1736343096423,0.10429976,95523.0,95518.0,0.49187356]
[1736343096829,0.10529976,95523.0,95518.0,0.08070868]
[1736343097144,0.10529976,95523.0,95518.0,0.29009168]
[1736343097346,0.10529976,95523.0,95520.0,0.41876]
[1736343097674,0.0586,95538.0,95521.0,0.18228233]
[1736343097876,0.0586,95538.0,95518.0,0.08370868]
[1736343097877,0.10429976,95537.0,95523.0,0.15]
[1736343098085,0.10429976,95537.0,95529.0,0.209359]
[1736343098512,0.209345,95536.0,95526.0,0.15]
[1736343098716,0.10429976,95535.0,95526.0,0.15]
[1736343098937,0.10429976,95527.0,95525.0,0.41116488]
[1736343099140,0.31366676,95526.0,95525.0,0.41116488]
[1736343099348,0.10429976,95526.0,95523.0,0.41116488]
[1736343099582,0.10429976,95526.0,95525.0,0.00780269]
[1736343099794,0.10429976,95526.0,95524.0,0.209371]
[1736343099795,0.10429976,95526.0,95524.0,0.00780484]
[1736343100006,0.10429976,95526.0,95520.0,0.153]
[1736343100007,0.10429976,95526.0,95525.0,0.00780269]
[1736343100356,0.52303476,95526.0,95518.0,0.49187356]
[1736343100564,0.10429976,95520.0,95518.0,0.49187356]
[1736343100762,0.31368176,95519.0,95518.0,0.41167356]
[1736343100994,0.31368176,95519.0,95518.0,0.00050868]
[1736343101397,0.43668176,95519.0,95518.0,0.00050868]
[1736343101608,0.68668176,95519.0,95518.0,0.00050868]
[1736343101851,0.79098152,95519.0,95518.0,0.00050868]
[1736343102231,0.74528176,95519.0,95518.0,0.00150868]
[1736343102870,0.64528176,95519.0,95518.0,0.00150868]
[1736343103075,0.75428176,95519.0,95518.0,0.00150868]
[1736343103505,0.74528176,95519.0,95518.0,0.00150868]
[1736343103681,0.74528176,95519.0,95498.0,0.00047581]
[1736343103682,0.209426,95499.0,95498.0,0.00047581]
[1736343103912,0.37232576,95499.0,95498.0,0.00062845]
[1736343104129,0.31372576,95499.0,95498.0,0.00062845]
[1736343104344,0.37236576,95499.0,95498.0,0.00062845]
[1736343104975,0.37236576,95499.0,95498.0,0.00162845]
[1736343105499,0.37536576,95499.0,95498.0,0.00162845]
[1736343106971,0.49836576,95499.0,95498.0,0.00162845]
[1736343107205,0.59836576,95499.0,95498.0,0.00162845]
[1736343107613,0.59836576,95499.0,95498.0,0.00062845]
[1736343107994,0.59936576,95499.0,95498.0,0.00062845]
[1736343108402,0.74836576,95499.0,95498.0,0.00062845]
[1736343108607,0.84966552,95499.0,95498.0,0.00015264]
[1736343109005,0.75436576,95499.0,95498.0,0.00015264]
[1736343109209,0.38136576,95499.0,95498.0,0.00015264]
[1736343109386,0.11329976,95499.0,95498.0,0.04645264]
[1736343109592,0.11329976,95499.0,95498.0,0.0543134]
[1736343109822,0.11729976,95499.0,95498.0,0.0543134]
[1736343110331,0.11729976,95499.0,95498.0,0.06794474]
[1736343110332,0.10429976,95499.0,95498.0,0.06794474]
[1736343110533,0.11129976,95499.0,95498.0,0.29774474]
[1736343110734,0.11329976,95499.0,95498.0,0.29774474]
[1736343110967,0.11329976,95499.0,95498.0,0.2841134]
[1736343111576,0.11129976,95499.0,95498.0,0.2841134]
[1736343111751,0.11129976,95499.0,95498.0,0.2851134]
[1736343111955,0.007,95499.0,95498.0,0.29573159]
[1736343112268,0.007,95499.0,95498.0,0.36719195]
[1736343112483,0.007,95499.0,95498.0,0.29573159]
[1736343112884,0.10429976,95499.0,95498.0,0.29573159]
[1736343113025,0.10429976,95499.0,95498.0,0.1341134]
[1736343113440,0.10429976,95499.0,95498.0,0.1401134]
[1736343113441,0.10529976,95499.0,95498.0,0.1401134]
[1736343113840,0.10529976,95499.0,95498.0,0.1381134]
[1736343114070,0.10429976,95499.0,95498.0,0.19385952]
[1736343114329,0.10529976,95499.0,95498.0,0.19585952]
[1736343114539,0.001,95499.0,95498.0,0.1401134]
[1736343115667,0.10529976,95499.0,95498.0,0.1401134]
[1736343116496,0.001,95499.0,95498.0,0.1401134]
[1736343118180,0.10529976,95499.0,95498.0,0.1401134]
[1736343118974,0.001,95499.0,95498.0,0.21209233]
[1736343119714,0.02067597,95554.0,95524.0,0.18937631]
[1736343119968,0.09344681,95578.0,95545.0,0.0792]
[1736343119969,0.10429976,95553.0,95545.0,0.0792]
[1736343120218,0.10429976,95553.0,95552.0,0.35931]
[1736343120464,0.06048,95567.0,95553.0,0.15]
[1736343120705,0.2676407,95592.0,95553.0,0.15]
[1736343120706,0.10429976,95566.0,95553.0,0.15]
[1736343120900,0.10429976,95566.0,95554.0,0.00678172]
[1736343121077,0.10429976,95566.0,95562.0,0.209287]
[1736343121318,0.10429976,95566.0,95562.0,0.418574]
[1736343121531,0.1048075,95566.0,95564.0,0.209283]
[1736343121743,0.1048075,95566.0,95563.0,0.0067656]
[1736343121971,0.1048075,95566.0,95561.0,0.20929]
[1736343122185,0.1048075,95566.0,95565.0,0.209281]
[1736343122397,0.1048075,95566.0,95565.0,0.439181]
[1736343122590,0.1048075,95566.0,95565.0,0.49144302]
[1736343123475,0.1158075,95566.0,95565.0,0.49144302]
[1736343123686,0.1068075,95566.0,95565.0,0.49144302]
[1736343123930,0.1068075,95566.0,95565.0,0.28216202]
[1736343124162,0.1128075,95566.0,95565.0,0.28316202]
[1736343125896,0.1128075,95566.0,95565.0,0.13316202]
[1736343126096,0.1128075,95566.0,95565.0,0.13090801]
[1736343126225,0.3220865,95566.0,95565.0,0.05100801]
[1736343126644,0.1128075,95566.0,95565.0,0.001]
[1736343128623,0.2358075,95566.0,95565.0,0.001]
[1736343128843,0.2358075,95566.0,95557.0,0.00047552]
[1736343128844,0.409296,95558.0,95557.0,0.00047552]
[1736343129057,0.53659576,95558.0,95557.0,0.00047552]
[1736343129269,0.33659576,95558.0,95557.0,0.00047552]
[1736343129441,0.53659576,95558.0,95557.0,0.00047552]
[1736343129645,0.63211264,95558.0,95557.0,0.00047552]
[1736343129891,0.209356,95532.0,95523.0,0.0478]
[1736343130098,0.10429976,95530.0,95523.0,0.0478]
[1736343130303,0.06044,95529.0,95524.0,0.00512659]
[1736343130618,0.10429976,95528.0,95524.0,0.00512659]
[1736343130825,0.10429976,95525.0,95524.0,0.00512659]
[1736343131009,0.10429976,95525.0,95519.0,0.0787]
[1736343131246,0.10429976,95524.0,95519.0,0.0787]
[1736343131458,0.10429976,95524.0,95523.0,0.001]
[1736343131850,0.10429976,95524.0,95523.0,0.00612794]
[1736343132091,0.10429976,95524.0,95523.0,0.001]
[1736343132266,0.10429976,95524.0,95523.0,0.00612794]
[1736343132498,0.10429976,95524.0,95523.0,0.001]
[1736343132708,0.10429976,95524.0,95523.0,0.00612794]
[1736343132975,0.10429976,95524.0,95523.0,0.0289082]
[1736343133191,0.10429976,95524.0,95523.0,0.18346636]
[1736343133832,0.10429976,95524.0,95523.0,0.15455816]
[1736343134077,0.10429976,95524.0,95523.0,0.00455816]
[1736343134284,0.10429976,95524.0,95523.0,0.00755816]
[1736343134496,0.10429976,95524.0,95523.0,0.003]
[1736343134709,0.10429976,95524.0,95523.0,0.00812794]
[1736343134916,0.10429976,95524.0,95523.0,0.001]
[1736343135127,0.10429976,95524.0,95523.0,0.00612794]
[1736343135355,0.16473976,95524.0,95523.0,0.001]
[1736343135561,0.16473976,95524.0,95523.0,0.00612794]
[1736343135766,0.16473976,95524.0,95523.0,0.001]
[1736343135985,0.16473976,95524.0,95523.0,0.00612794]
[1736343136191,0.16473976,95524.0,95523.0,0.001]
[1736343136368,0.16473976,95524.0,95523.0,0.00812794]
[1736343136600,0.16473976,95524.0,95523.0,0.003]
[1736343136774,0.16473976,95524.0,95523.0,0.001]
[1736343137185,0.16473976,95524.0,95523.0,0.0319082]
[1736343137335,0.16473976,95524.0,95523.0,0.003]
[1736343139419,0.16473976,95524.0,95523.0,0.001]
[1736343139621,0.16473976,95524.0,95499.0,0.0812]
[1736343139822,0.209415,95504.0,95499.0,0.0812]
[1736343140034,0.16473976,95503.0,95500.0,0.00412708]
[1736343140268,0.16473976,95503.0,95499.0,0.08135264]
[1736343140678,0.10429976,95501.0,95499.0,0.08135264]
[1736343140883,0.10429976,95501.0,95500.0,0.00412708]
[1736343141081,0.16473976,95501.0,95500.0,0.00412708]
[1736343142914,0.10629976,95501.0,95500.0,0.00412708]
[1736343143211,0.10429976,95501.0,95500.0,0.00412708]
[1736343143528,0.10429976,95501.0,95499.0,0.00015264]
[1736343143529,0.10629976,95501.0,95499.0,0.00015264]
[1736343143736,0.16473976,95500.0,95499.0,0.00015264]
[1736343143997,0.37416376,95500.0,95499.0,0.00015264]
[1736343144162,0.48666324,95500.0,95499.0,0.00015264]
[1736343144385,0.39716376,95500.0,95499.0,0.00015264]
[1736343144942,0.37416376,95500.0,95499.0,0.00015264]
[1736343145606,0.39716376,95500.0,95499.0,0.00015264]
[1736343145939,0.39716376,95500.0,95466.0,0.209497]
[1736343145940,0.209487,95471.0,95465.0,8.54e-05]
[1736343146113,0.209487,95471.0,95470.0,0.00023802]
[1736343146114,0.37402676,95471.0,95470.0,0.00023802]
[1736343147096,0.37602676,95471.0,95470.0,0.00023802]
[1736343147462,0.38502676,95471.0,95470.0,0.00023802]
[1736343147677,0.38302676,95471.0,95470.0,0.00023802]
[1736343147899,0.37702676,95471.0,95470.0,0.00023802]
[1736343149277,0.38302676,95471.0,95470.0,0.00023802]
[1736343149609,0.37702676,95471.0,95470.0,0.00023802]
[1736343150021,0.38602676,95471.0,95470.0,0.00023802]
[1736343150158,0.32278676,95471.0,95470.0,0.00023802]
[1736343150378,0.17357976,95471.0,95470.0,0.00023802]
[1736343150641,0.17457976,95471.0,95470.0,0.00023802]
[1736343151156,0.17457976,95471.0,95470.0,0.12363802]
[1736343151157,0.01,95471.0,95470.0,0.12363802]
[1736343151373,0.001,95471.0,95470.0,0.14611511]
[1736343151597,0.001,95471.0,95470.0,0.15376221]
[1736343152552,0.009,95471.0,95470.0,0.15376221]
[1736343152742,0.008,95471.0,95470.0,0.30376221]
[1736343152928,0.209436,95495.0,95481.0,0.15]
[1736343153161,0.06028,95483.0,95482.0,0.0359466]
[1736343153354,0.16457976,95483.0,95481.0,0.15]
[1736343153620,0.06028,95483.0,95482.0,0.00657829]
[1736343153860,0.16457976,95483.0,95481.0,0.15]
[1736343154068,0.06028,95483.0,95482.0,0.00657829]
[1736343154348,0.16457976,95483.0,95482.0,0.00657829]
[1736343154530,0.16457976,95483.0,95482.0,0.359463]
[1736343154767,0.16457976,95483.0,95482.0,0.43793419]
[1736343154977,0.16557976,95483.0,95482.0,0.43793419]
[1736343155184,0.16557976,95483.0,95482.0,0.36704129]
[1736343155797,0.16557976,95483.0,95482.0,0.00757829]
[1736343156111,0.16557976,95483.0,95482.0,0.001]
[1736343156312,0.16457976,95483.0,95482.0,0.001]
[1736343156553,0.16557976,95483.0,95482.0,0.001]
[1736343156961,0.16457976,95483.0,95482.0,0.001]
[1736343157287,0.16557976,95483.0,95470.0,0.12363802]
[1736343157492,0.10429976,95472.0,95470.0,0.12363802]
[1736343157697,0.10429976,95472.0,95471.0,0.00659802]
[1736343158509,0.209487,95471.0,95470.0,0.12363802]
[1736343158717,0.31378676,95471.0,95470.0,0.00023802]
[1736343160168,0.31578676,95471.0,95470.0,0.00023802]
[1736343160375,0.31378676,95471.0,95470.0,0.00023802]
[1736343160830,0.32178676,95471.0,95470.0,0.00023802]
[1736343161015,0.31378676,95471.0,95470.0,0.00023802]
[1736343161159,0.34578676,95471.0,95470.0,0.00023802]
[1736343161581,0.34978676,95471.0,95470.0,0.00023802]
[1736343161787,0.53666114,95471.0,95470.0,0.00023802]
[1736343162203,0.63266114,95471.0,95470.0,0.00023802]
[1736343162398,0.63666114,95471.0,95470.0,0.00023802]
[1736343162926,0.78666114,95471.0,95470.0,0.00023802]
[1736343163102,0.77766114,95471.0,95470.0,0.00023802]
[1736343163308,0.78666114,95471.0,95470.0,0.00023802]
[1736343163908,0.78666114,95471.0,95431.0,8.54e-05]
[1736343163909,0.582498,95466.0,95431.0,8.54e-05]
[1736343164150,0.2,95460.0,95459.0,8e-07]
[1736343164383,0.59709076,95460.0,95459.0,8e-07]
[1736343164594,0.74709076,95460.0,95459.0,8e-07]
[1736343165432,0.74709076,95460.0,95431.0,8.54e-05]
[1736343165433,0.209573,95432.0,95431.0,8.54e-05]
[1736343165638,0.39715276,95432.0,95431.0,8.54e-05]
[1736343165894,0.33687276,95432.0,95431.0,8.54e-05]
[1736343166122,0.10429976,95432.0,95431.0,8.54e-05]
[1736343166363,0.10429976,95432.0,95431.0,0.2779854]
[1736343166599,0.06028,95450.0,95447.0,0.209538]
[1736343166871,0.009,95460.0,95458.0,0.0785]
[1736343167103,0.10429976,95473.0,95458.0,0.0785]
[1736343167104,0.209485,95472.0,95458.0,0.0785]
[1736343167381,0.006,95460.0,95459.0,0.01349858]
[1736343167606,0.17057976,95460.0,95459.0,0.02774319]
[1736343167887,0.17057976,95460.0,95458.0,0.0785]
[1736343167888,0.16457976,95460.0,95458.0,0.0785]
[1736343168123,0.06128,95460.0,95459.0,0.01349858]
[1736343168355,0.06128,95460.0,95456.0,0.0494]
[1736343168356,0.209514,95459.0,95456.0,0.0494]
[1736343168591,0.10429976,95457.0,95456.0,0.0494]
[1736343169105,0.006,95450.0,95445.0,0.08]
[1736343169300,0.10429976,95449.0,95445.0,0.08]
[1736343169505,0.10429976,95449.0,95446.0,0.01354524]
[1736343169710,0.10429976,95449.0,95445.0,0.08]
[1736343170517,0.06028,95448.0,95445.0,0.08]
[1736343170771,0.10429976,95447.0,95445.0,0.08]
[1736343170998,0.10429976,95447.0,95446.0,0.01354524]